[Event "CIS Master Groups 2024"]
[Site "Vasto"]
[Date "2024.04.13"]
[Round "9.20"]
[White "Bertagnolli, Alexander"]
[Black "Piscopo, Pierluigi"]
[Result "0-1"]
[ECO "B40"]
[WhiteElo "2333"]
[BlackElo "2312"]
[Annotator "RC"]
[PlyCount "62"]
[EventDate "2024.04.07"]
[EventType "team-tourn"]
[EventCountry "ITA"]
[SourceTitle "playchess.com"]
[Source "ChessBase"]
[SourceQuality "1"]
[TimeControl "40/5400+30:900+30"]

1. e4 {[%emt 1:05:42]} c5 {[%emt 1:05:43]} 2. Nf3 {[%emt 0:00:23]} e6 {[%emt 0:00:55]} 3. b3 {[%emt 0:00:29]} b6 {[%emt 0:00:30]} 4. Bb2 {[%emt 0:00:25]} Bb7 {[%emt 0:00:23]} 5. Qe2 {[%emt 0:00:22]} Nf6 {[%emt 0:03:02]} 6. Nc3 {[%emt 0:00:35]} Be7 {[%emt 0:02:01]} 7. g4 {[%emt 0:00:42]} d5 {[%emt 0:01:04]} 8. exd5 {[%emt 0:01:23]} Nxd5 {[%emt 0:00:27]} 9. Nxd5 {[%emt 0:00:31]} Qxd5 {[%emt 0:00:36]} 10. Bg2 {[%emt 0:00:28]} Nc6 {[%emt 0:02:26]} 11. O-O-O {[%emt 0:01:36]} Bf6 {[%emt 0:02:29]} 12. Bxf6 {[%emt 0:04:33]} gxf6 {[%emt 0:00:22]} 13. Qe3 {[%emt 0:00:56]} O-O-O {[%emt 0:01:05]} 14. h3 {[%emt 0:02:39]} h5 {[%emt 0:02:19]} 15. Qf4 {[%emt 0:03:36]} Rhg8 {[%emt 0:08:42]} 16. Qxf6 {[%emt 0:07:44]} c4 {[%emt 0:04:29]} 17. Qc3 {[%emt 0:03:46]} hxg4 {[%emt 0:00:53]} 18. hxg4 {[%emt 0:01:19]} Rxg4 {[%emt 0:00:35]} 19. Rh2 {[%emt 0:00:21]} Qc5 {[%emt 0:00:58]} 20. Bh1 {[%emt 0:01:04]} Nb4 {[%emt 0:00:32]} 21. Kb1 {[%emt 0:00:29]} Nd5 {[%emt 0:00:50]} 22. Qe5 {[%emt 0:00:37]} cxb3 {[%emt 0:00:44]} 23. cxb3 {[%emt 0:00:25]} Nc3+ {[%emt 0:00:21]} 24. dxc3 {[%emt 0:00:38]} Rxd1+ {[%emt 0:00:21]} 25. Kc2 {[%emt 0:00:21]} Rxh1 {[%emt 0:00:34]} 26. Rxh1 {[%emt 0:01:04]} Bxf3 {[%emt 0:00:49]} 27. Rh8+ {[%emt 0:00:31]} Kb7 {[%emt 0:00:21]} 28. Rb8+ {[%emt 0:00:33]} Ka6 {[%emt 0:00:22]} 29. Qe1 {[%emt 0:00:25]} Re4 {[%emt 0:00:26]} 30. Qc1 {[%emt 0:00:49]} Qxf2+ {[%emt 0:00:29]} 31. Kb1 {[%emt 0:00:21]} Re1 {[%emt 0:00:22]} 0-1

[Event "CIS Master Groups 2024"]
[Site "Vasto"]
[Date "2024.04.13"]
[Round "9.21"]
[White "Jianu, Vlad-Cristian"]
[Black "Zwirs, Nico"]
[Result "1/2-1/2"]
[ECO "D02"]
[WhiteElo "2491"]
[BlackElo "2480"]
[Annotator "RC"]
[PlyCount "149"]
[EventDate "2024.04.07"]
[EventType "team-tourn"]
[EventCountry "ITA"]
[SourceTitle "playchess.com"]
[Source "ChessBase"]
[SourceQuality "1"]
[TimeControl "40/5400+30:900+30"]

1. d4 {[%emt 1:05:43]} d5 {[%emt 1:05:40]} 2. Nf3 {[%emt 0:00:21]} Nf6 {[%emt 0:00:22]} 3. g3 {[%emt 0:00:22]} c5 {[%emt 0:00:21]} 4. Bg2 {[%emt 0:00:25]} cxd4 {[%emt 0:00:25]} 5. O-O {[%emt 0:00:22]} h6 {[%emt 0:00:21]} 6. Bf4 {[%emt 0:00:44]} Qb6 {[%emt 0:01:23]} 7. Qxd4 {[%emt 0:01:23]} Qxd4 {[%emt 0:03:59]} 8. Nxd4 {[%emt 0:00:21]} Nc6 {[%emt 0:00:22]} 9. Nxc6 {[%emt 0:07:03]} bxc6 {[%emt 0:00:21]} 10. c4 {[%emt 0:00:22]} e6 {[%emt 0:03:08]} 11. Nc3 {[%emt 0:01:26]} Ba6 {[%emt 0:00:28]} 12. cxd5 {[%emt 0:02:31]} cxd5 {[%emt 0:00:23]} 13. Rfc1 {[%emt 0:04:16]} Bb4 {[%emt 0:01:42]} 14. e3 {[%emt 0:00:25]} Nd7 {[%emt 0:03:58]} 15. g4 {[%emt 0:01:52]} O-O {[%emt 0:01:41]} 16. a3 {[%emt 0:00:22]} Be7 {[%emt 0:00:29]} 17. Rd1 {[%emt 0:02:24]} Nb6 {[%emt 0:06:06]} 18. e4 {[%emt 0:00:59]} dxe4 {[%emt 0:00:24]} 19. Bxe4 {[%emt 0:01:01]} Rac8 {[%emt 0:00:47]} 20. Bd6 {[%emt 0:00:30]} Rfe8 {[%emt 0:01:03]} 21. Bxe7 {[%emt 0:00:22]} Rxe7 {[%emt 0:00:22]} 22. Rd6 {[%emt 0:00:21]} Bb7 {[%emt 0:01:19]} 23. Rad1 {[%emt 0:02:05]} Bxe4 {[%emt 0:00:21]} 24. Nxe4 {[%emt 0:00:21]} Nd5 {[%emt 0:01:59]} 25. Nc3 {[%emt 0:00:23]} Nxc3 {[%emt 0:01:03]} 26. Rd8+ {[%emt 0:00:21]} Kh7 {[%emt 0:00:25]} 27. bxc3 {[%emt 0:00:29]} Rxc3 {[%emt 0:00:21]} 28. R1d7 {[%emt 0:00:28]} Rc7 {[%emt 0:00:57]} 29. Rxe7 {[%emt 0:00:22]} Rxe7 {[%emt 0:00:21]} 30. Kg2 {[%emt 0:00:21]} Rc7 {[%emt 0:00:29]} 31. Rd4 {[%emt 0:01:08]} a5 {[%emt 0:00:41]} 32. f3 {[%emt 0:01:48]} Rc3 {[%emt 0:00:56]} 33. Ra4 {[%emt 0:00:21]} Rc5 {[%emt 0:00:22]} 34. Rd4 {[%emt 0:00:39]} Kg6 {[%emt 0:00:52]} 35. Kg3 {[%emt 0:00:28]} h5 {[%emt 0:00:55]} 36. h3 {[%emt 0:00:38]} Kg5 {[%emt 0:00:52]} 37. h4+ {[%emt 0:01:31]} Kg6 {[%emt 0:01:05]} 38. g5 {[%emt 0:00:28]} f6 {[%emt 0:01:26]} 39. gxf6 {[%emt 0:03:40]} gxf6 {[%emt 0:00:20]} 40. Rd6 {[%emt 0:00:21]} e5 {[%emt 0:00:21]} 41. Ra6 {[%emt 0:15:29]} Rc3 {[%emt 0:16:01]} 42. Rxa5 {[%emt 0:00:25]} e4 {[%emt 0:00:21]} 43. Kf4 {[%emt 0:00:49]} Rxf3+ {[%emt 0:00:48]} 44. Kxe4 {[%emt 0:00:22]} Rh3 {[%emt 0:00:22]} 45. a4 {[%emt 0:00:21]} Rxh4+ {[%emt 0:00:22]} 46. Kf3 {[%emt 0:00:21]} Rh3+ {[%emt 0:00:22]} 47. Kg2 {[%emt 0:00:22]} Ra3 {[%emt 0:00:21]} 48. Ra8 {[%emt 0:00:21]} h4 {[%emt 0:00:38]} 49. a5 {[%emt 0:00:25]} Kg5 {[%emt 0:01:08]} 50. a6 {[%emt 0:00:25]} h3+ {[%emt 0:00:40]} 51. Kh2 {[%emt 0:00:22]} Kf4 {[%emt 0:00:22]} 52. a7 {[%emt 0:01:28]} f5 {[%emt 0:00:21]} 53. Kh1 {[%emt 0:00:23]} Ra2 {[%emt 0:00:51]} 54. Rh8 {[%emt 0:01:08]} Rxa7 {[%emt 0:00:22]} 55. Rxh3 {[%emt 0:00:22]} Rg7 {[%emt 0:00:21]} 56. Ra3 {[%emt 0:00:24]} Rg8 {[%emt 0:01:06]} 57. Kh2 {[%emt 0:00:22]} Rg6 {[%emt 0:00:21]} 58. Ra4+ {[%emt 0:00:46]} Kf3 {[%emt 0:00:32]} 59. Ra3+ {[%emt 0:00:21]} Ke4 {[%emt 0:00:32]} 60. Ra4+ {[%emt 0:00:21]} Ke5 {[%emt 0:00:26]} 61. Ra5+ {[%emt 0:00:21]} Kf4 {[%emt 0:00:22]} 62. Ra4+ {[%emt 0:00:21]} Kg5 {[%emt 0:00:37]} 63. Kg3 {[%emt 0:00:23]} Rb6 {[%emt 0:00:23]} 64. Ra3 {[%emt 0:00:31]} Rh6 {[%emt 0:00:24]} 65. Ra5 {[%emt 0:00:25]} Rh1 {[%emt 0:00:27]} 66. Ra4 {[%emt 0:00:41]} Rg1+ {[%emt 0:00:43]} 67. Kf3 {[%emt 0:00:24]} Rf1+ {[%emt 0:00:24]} 68. Kg2 {[%emt 0:00:24]} Rb1 {[%emt 0:00:27]} 69. Kf3 {[%emt 0:00:27]} Rb3+ {[%emt 0:00:22]} 70. Kf2 {[%emt 0:00:22]} Rb2+ {[%emt 0:00:42]} 71. Kf3 {[%emt 0:00:22]} Rb3+ {[%emt 0:00:21]} 72. Kf2 {[%emt 0:00:21]} f4 {[%emt 0:00:30]} 73. Ra8 {[%emt 0:00:22]} Rb2+ {[%emt 0:00:22]} 74. Kf3 {[%emt 0:00:21]} Rb3+ {[%emt 0:00:20]} 75. Kf2 {[%emt 0:00:21]} 1/2-1/2

[Event "CIS Master Groups 2024"]
[Site "Vasto"]
[Date "2024.04.13"]
[Round "9.22"]
[White "Loiacono, Leonardo"]
[Black "Yao, Stefano"]
[Result "1/2-1/2"]
[ECO "C01"]
[WhiteElo "2309"]
[BlackElo "2289"]
[Annotator "RC"]
[PlyCount "75"]
[EventDate "2024.04.07"]
[EventType "team-tourn"]
[EventCountry "ITA"]
[SourceTitle "playchess.com"]
[Source "ChessBase"]
[SourceQuality "1"]
[TimeControl "40/5400+30:900+30"]

1. e4 {[%emt 1:05:42]} e6 {[%emt 1:05:42]} 2. d4 {[%emt 0:00:27]} d5 {[%emt 0:00:21]} 3. Nc3 {[%emt 0:00:23]} Nf6 {[%emt 0:00:24]} 4. exd5 {[%emt 0:01:09]} exd5 {[%emt 0:00:22]} 5. Bd3 {[%emt 0:00:35]} c5 {[%emt 0:01:10]} 6. dxc5 {[%emt 0:00:32]} Bxc5 {[%emt 0:00:21]} 7. Nf3 {[%emt 0:01:00]} O-O {[%emt 0:00:25]} 8. O-O {[%emt 0:01:57]} h6 {[%emt 0:00:35]} 9. h3 {[%emt 0:00:42]} Nc6 {[%emt 0:00:21]} 10. Bf4 {[%emt 0:02:14]} Re8 {[%emt 0:02:07]} 11. Re1 {[%emt 0:02:09]} Rxe1+ {[%emt 0:01:43]} 12. Qxe1 {[%emt 0:00:22]} Be6 {[%emt 0:00:22]} 13. Nb5 {[%emt 0:01:47]} Nh5 {[%emt 0:01:27]} 14. Bh2 {[%emt 0:02:30]} Rc8 {[%emt 0:02:24]} 15. Bg6 {[%emt 0:03:56]} Nf6 {[%emt 0:00:55]} 16. Bd3 {[%emt 0:00:40]} a6 {[%emt 0:00:32]} 17. Nc3 {[%emt 0:00:20]} Bb4 {[%emt 0:00:58]} 18. a3 {[%emt 0:00:43]} Ba5 {[%emt 0:00:22]} 19. Qe2 {[%emt 0:02:17]} Bc7 {[%emt 0:01:51]} 20. Bxc7 {[%emt 0:00:44]} Qxc7 {[%emt 0:00:22]} 21. Qd2 {[%emt 0:01:46]} Rd8 {[%emt 0:01:20]} 22. Ne2 {[%emt 0:02:09]} Qb6 {[%emt 0:01:07]} 23. b4 {[%emt 0:00:27]} Ne4 {[%emt 0:00:47]} 24. Qe3 {[%emt 0:00:21]} Qxe3 {[%emt 0:00:23]} 25. fxe3 {[%emt 0:00:22]} Nd6 {[%emt 0:01:02]} 26. Ned4 {[%emt 0:00:22]} Nxd4 {[%emt 0:00:36]} 27. Nxd4 {[%emt 0:00:21]} Bd7 {[%emt 0:00:35]} 28. Kf2 {[%emt 0:01:17]} Kf8 {[%emt 0:00:24]} 29. Ke1 {[%emt 0:00:23]} Ke7 {[%emt 0:00:21]} 30. Kd2 {[%emt 0:00:21]} g6 {[%emt 0:00:27]} 31. a4 {[%emt 0:00:48]} Rc8 {[%emt 0:01:27]} 32. a5 {[%emt 0:00:38]} Kf6 {[%emt 0:01:09]} 33. Rf1+ {[%emt 0:01:09]} Ke7 {[%emt 0:00:58]} 34. Re1 {[%emt 0:00:21]} Kf6 {[%emt 0:00:26]} 35. Rf1+ {[%emt 0:00:39]} Ke7 {[%emt 0:00:22]} 36. Re1 {[%emt 0:00:59]} Kf6 {[%emt 0:00:21]} 37. Rf1+ {[%emt 0:00:20]} Ke7 {[%emt 0:00:23]} 38. Re1 {[%emt 0:00:22]} 1/2-1/2

[Event "CIS Master Groups 2024"]
[Site "Vasto"]
[Date "2024.04.13"]
[Round "9.23"]
[White "Tripodi, Enzo"]
[Black "Damia, Angelo"]
[Result "1-0"]
[ECO "B07"]
[WhiteElo "2152"]
[BlackElo "2234"]
[Annotator "RC"]
[PlyCount "67"]
[EventDate "2024.04.07"]
[EventType "team-tourn"]
[EventCountry "ITA"]
[SourceTitle "playchess.com"]
[Source "ChessBase"]
[SourceQuality "1"]
[TimeControl "40/5400+30:900+30"]

1. e4 {[%emt 1:05:41]} d6 {[%emt 1:05:40]} 2. d4 {[%emt 0:00:22]} Nf6 {[%emt 0:00:21]} 3. Nc3 {[%emt 0:00:22]} c6 {[%emt 0:00:22]} 4. Nf3 {[%emt 0:00:34]} Bg4 {[%emt 0:00:40]} 5. h3 {[%emt 0:00:36]} Bh5 {[%emt 0:00:44]} 6. a4 {[%emt 0:01:57]} Qc7 {[%emt 0:01:12]} 7. Be2 {[%emt 0:02:39]} e5 {[%emt 0:00:35]} 8. Be3 {[%emt 0:00:44]} Nbd7 {[%emt 0:01:00]} 9. O-O {[%emt 0:01:03]} Be7 {[%emt 0:03:04]} 10. dxe5 {[%emt 0:01:17]} dxe5 {[%emt 0:00:39]} 11. Nd2 {[%emt 0:00:23]} Bg6 {[%emt 0:00:45]} 12. Bf3 {[%emt 0:05:54]} O-O {[%emt 0:03:44]} 13. Qe2 {[%emt 0:00:42]} Bc5 {[%emt 0:01:02]} 14. Bg5 {[%emt 0:01:02]} h6 {[%emt 0:02:16]} 15. Bh4 {[%emt 0:00:22]} Nh7 {[%emt 0:00:21]} 16. Bg4 {[%emt 0:02:41]} Ndf6 {[%emt 0:05:05]} 17. Bf5 {[%emt 0:00:21]} Bd4 {[%emt 0:01:24]} 18. Qc4 {[%emt 0:01:24]} Bxc3 {[%emt 0:01:50]} 19. Qxc3 {[%emt 0:00:29]} Bxf5 {[%emt 0:00:30]} 20. exf5 {[%emt 0:00:21]} Nd5 {[%emt 0:01:28]} 21. Qf3 {[%emt 0:00:55]} Nf4 {[%emt 0:01:54]} 22. Ne4 {[%emt 0:00:45]} g5 {[%emt 0:00:45]} 23. Bg3 {[%emt 0:00:51]} Rfe8 {[%emt 0:02:56]} 24. h4 {[%emt 0:01:14]} Qd7 {[%emt 0:00:49]} 25. hxg5 {[%emt 0:00:35]} hxg5 {[%emt 0:00:34]} 26. Rad1 {[%emt 0:00:40]} Qxf5 {[%emt 0:00:44]} 27. Nd6 {[%emt 0:00:21]} Qxc2 {[%emt 0:00:39]} 28. Bxf4 {[%emt 0:00:44]} exf4 {[%emt 0:00:37]} 29. Nxe8 {[%emt 0:00:23]} Rxe8 {[%emt 0:00:22]} 30. b4 {[%emt 0:03:45]} Qxa4 {[%emt 0:00:45]} 31. Qc3 {[%emt 0:00:21]} Qb5 {[%emt 0:01:22]} 32. Rfe1 {[%emt 0:00:27]} Rxe1+ {[%emt 0:00:41]} 33. Rxe1 {[%emt 0:00:20]} Nf8 {[%emt 0:00:31]} 34. Re5 {[%emt 0:00:21]} 1-0

[Event "CIS Master Groups 2024"]
[Site "Vasto"]
[Date "2024.04.13"]
[Round "9.24"]
[White "Stromboli, Carlo"]
[Black "Rotondaro, Alberto"]
[Result "1-0"]
[ECO "B50"]
[WhiteElo "2192"]
[BlackElo "2148"]
[Annotator "RC"]
[PlyCount "67"]
[EventDate "2024.04.07"]
[EventType "team-tourn"]
[EventCountry "ITA"]
[SourceTitle "playchess.com"]
[Source "ChessBase"]
[SourceQuality "1"]
[TimeControl "40/5400+30:900+30"]

1. e4 {[%emt 1:05:44]} c5 {[%emt 1:05:46]} 2. Nf3 {[%emt 0:00:23]} d6 {[%emt 0:00:24]} 3. c3 {[%emt 0:00:41]} Nf6 {[%emt 0:00:24]} 4. e5 {[%emt 0:00:30]} dxe5 {[%emt 0:01:11]} 5. Nxe5 {[%emt 0:00:28]} Nbd7 {[%emt 0:00:43]} 6. Nxd7 {[%emt 0:00:48]} Bxd7 {[%emt 0:00:25]} 7. Be2 {[%emt 0:00:33]} Bc6 {[%emt 0:00:50]} 8. O-O {[%emt 0:00:23]} e6 {[%emt 0:00:28]} 9. Na3 {[%emt 0:00:34]} Bd6 {[%emt 0:00:44]} 10. Nc4 {[%emt 0:04:52]} Bc7 {[%emt 0:00:38]} 11. d4 {[%emt 0:00:25]} cxd4 {[%emt 0:01:12]} 12. cxd4 {[%emt 0:01:08]} Qd5 {[%emt 0:01:02]} 13. Ne3 {[%emt 0:03:37]} Qd6 {[%emt 0:00:25]} 14. g3 {[%emt 0:00:56]} O-O-O {[%emt 0:02:44]} 15. Bf3 {[%emt 0:00:25]} Bxf3 {[%emt 0:01:14]} 16. Qxf3 {[%emt 0:00:22]} Qxd4 {[%emt 0:00:28]} 17. a4 {[%emt 0:00:24]} Qe4 {[%emt 0:01:02]} 18. Qe2 {[%emt 0:00:25]} h5 {[%emt 0:03:51]} 19. Ra3 {[%emt 0:02:53]} h4 {[%emt 0:00:41]} 20. f3 {[%emt 0:00:40]} Qb4 {[%emt 0:01:43]} 21. g4 {[%emt 0:09:29]} Kb8 {[%emt 0:00:27]} 22. Nc2 {[%emt 0:00:45]} Qd6 {[%emt 0:01:44]} 23. a5 {[%emt 0:00:52]} Nd5 {[%emt 0:00:47]} 24. Ra4 {[%emt 0:01:45]} Qc5+ {[%emt 0:05:04]} 25. Kh1 {[%emt 0:00:39]} Bxa5 {[%emt 0:00:34]} 26. b4 {[%emt 0:03:10]} Bxb4 {[%emt 0:01:51]} 27. Nxb4 {[%emt 0:00:25]} Nc3 {[%emt 0:01:54]} 28. Nd3 {[%emt 0:00:56]} Qb5 {[%emt 0:02:39]} 29. Bf4+ {[%emt 0:00:27]} Ka8 {[%emt 0:00:21]} 30. Rxa7+ {[%emt 0:00:34]} Kxa7 {[%emt 0:00:22]} 31. Ra1+ {[%emt 0:00:20]} Na4 {[%emt 0:00:25]} 32. Qc2 {[%emt 0:00:25]} Qxd3 {[%emt 0:02:47]} 33. Rxa4+ {[%emt 0:00:32]} Qa6 {[%emt 0:00:22]} 34. Qc5+ {[%emt 0:00:28]} 1-0

[Event "CIS Master Groups 2024"]
[Site "Vasto"]
[Date "2024.04.14"]
[Round "10.1"]
[White "Zwirs, Nico"]
[Black "Jianu, Vlad-Cristian"]
[Result "1/2-1/2"]
[ECO "B13"]
[WhiteElo "2480"]
[BlackElo "2491"]
[Annotator "TA"]
[PlyCount "95"]
[EventDate "2024.04.07"]
[EventType "team-tourn"]
[EventCountry "ITA"]
[SourceTitle "playchess.com"]
[Source "ChessBase"]
[SourceQuality "1"]
[TimeControl "40/5400+30:900+30"]

{[%evp 14,95,25,0,0,-7,0,-6,0,0,9,15,21,19,54,51,49,54,45,0,18,-83,-36,-39,0,-46,-58,-50,-35,-54,-47,-44,-47,-102,-9,-14,0,0,0,0,0,0,0,0,54,0,0,0,0,0,0,0,0,0,0,0,0,0,4,0,0,0,-2,-6,0,0,3,0,0,-5,0,-3,-3,-26,-24,-29,-3,-8,-3,-25,-25,-25,-25,-25]} 1. e4 {[%emt 1:18:55]} c6 {[%emt 1:18:56]} 2. d4 {[%emt 0:00:28]} d5 {[%emt 0:00:27]} 3. exd5 {[%emt 0:00:28]} cxd5 {[%emt 0:00:29]} 4. Nf3 {[%emt 0:00:28]} Nc6 {[%emt 0:00:29]} 5. c3 {[%emt 0:00:28]} Nf6 {[%emt 0:01:26]} 6. Bd3 {[%emt 0:01:12]} Bg4 {[%emt 0:01:05]} 7. O-O {[%emt 0:00:31]} e6 {[%emt 0:00:29]} 8. Re1 {[%emt 0:01:39]} Bd6 {[%emt 0:00:36]} 9. a4 {[%emt 0:00:36]} O-O {[%emt 0:00:36][%cal Oe6e5]} 10. Bg5 {[%emt 0:00:48]} Re8 {[%emt 0:01:09] The position is equal.} 11. Nbd2 {[%emt 0:00:43]} Rc8 {[%emt 0:02:30]} 12. Qb1 {[%emt 0:01:43][%cal Od3h7] Bxh7+! would now be deadly.} h6 {[%emt 0:00:39]} 13. Bh4 {[%emt 0:00:28]} e5 {[%emt 0:02:28]} 14. dxe5 {[%emt 0:00:42]} Nxe5 {[%emt 0:00:28]} 15. Nxe5 {[%emt 0:00:40]} Bxe5 {[%emt 0:00:29]} 16. Bb5 {[%emt 0:02:47]} Re7 {[%emt 0:06:14]} 17. Qa2 {[%emt 0:02:39] [#]} (17. h3 $11 {keeps the balance.} Bh5 18. Bxf6 Bxf6 19. Rxe7 Bxe7 (19... Qxe7 $2 {perishes.} 20. Qf5 $18) 20. Nb3) 17... Qd6 {[%emt 0:00:00]} ({Black should play} 17... d4 $1 $17 18. Nf3 Bxf3 19. gxf3 d3 (19... dxc3 20. bxc3 a6 21. Rad1 $17) 20. Bxf6 Bxf6 21. Rxe7 Bxe7) 18. h3 $15 {[%emt 0:00:53][%cal Oh4f6] Hoping for Bxf6!} Bh5 {[%emt 0:00:00]} 19. Nf1 {[%emt 0:00:31]} (19. g4 $11 Bh2+ 20. Kg2 Rxe1 21. Rxe1) 19... d4 {[%emt 0:00:00]} 20. cxd4 {[%emt 0:00:40]} Bxd4 {[%emt 0:00:00] Strongly threatening ...Rxe1.} (20... Qxd4 $5 21. g4 Bg6 $15) 21. Bg3 {[%emt 0:00:42]} Qb4 {[%emt 0:00:00]} 22. Rxe7 {[%emt 0:00:55]} Qxe7 {[%emt 0:00:00]} 23. Qb3 {[%emt 0:00:39] [#]} (23. Bd3 $1 $15) 23... a5 {[%emt 0:00:03]} ({Black should try} 23... Bg6 $1 $17 {aiming for ...Rc2.} 24. Bd3 Bxd3 25. Qxd3 Qe4 (25... Bxb2 26. Rb1 $17) 26. Qxe4 Nxe4) 24. Bf4 $11 {[%emt 0:01:37]} Qb4 {[%emt 0:01:20]} 25. Qxb4 {[%emt 0:00:34]} axb4 {[%emt 0:00:28]} 26. Rc1 {[%emt 0:00:27]} Rxc1 {[%emt 0:00:41]} 27. Bxc1 {[%emt 0:00:28]} Ne4 {[%emt 0:00:28]} 28. Ne3 {[%emt 0:00:31]} Nc5 {[%emt 0:00:41]} (28... Bg6 $11) 29. Bd2 {[%emt 0:01:00]} (29. Nf5 $14 Nb3 30. Bc4 Nxc1 31. Nxd4) 29... b3 {[%emt 0:01:05]} 30. Bb4 {[%emt 0:00:40]} Bg6 {[%emt 0:00:49] Inhibits Nf5.} 31. Ba3 {[%emt 0:00:33]} Nd3 {[%emt 0:00:38]} 32. Bc4 {[%emt 0:00:37]} Nxb2 {[%emt 0:00:54]} 33. Bxb3 {[%emt 0:00:29]} Nd3 {[%emt 0:00:28]} 34. Bd5 {[%emt 0:00:45]} b6 {[%emt 0:00:34]} 35. Bc6 {[%emt 0:00:35]} Nc5 {[%emt 0:01:01]} 36. Bb5 {[%emt 0:00:33]} Be4 {[%emt 0:00:33]} 37. Nc4 {[%emt 0:00:28]} Nd3 {[%emt 0:00:29]} 38. Ne3 {[%emt 0:00:29]} g6 {[%emt 0:00:35]} 39. Kf1 {[%emt 0:00:30]} Nc5 {[%emt 0:00:31]} 40. Kg1 {[%emt 0:00:32]} Kg7 {[%emt 0:00:32]} 41. Bb4 {[%emt 0:15:28]} Nd3 {[%emt 0:15:32]} 42. Bd2 {[%emt 0:00:28]} f5 {[%emt 0:00:29]} 43. a5 {[%emt 0:00:30]} bxa5 {[%emt 0:00:28]} 44. Bxa5 {[%emt 0:00:28]} f4 {[%emt 0:00:29]} (44... Nxf2 $5 45. Kxf2 f4 $11) 45. Nd1 {[%emt 0:00:33]} g5 {[%emt 0:00:30]} 46. Bxd3 {[%emt 0:00:29]} Bxd3 {[%emt 0:00:28]} 47. Bc3 {[%emt 0:00:27]} Bxc3 {[%emt 0:00:28]} 48. Nxc3 {[%emt 0:00:28] Weighted Error Value: White=0.13 (very precise) /Black=0.15 (very precise) .  Mistake:       	White=4     	Black=3      Inaccurate:     	White=1     	Black=3      OK:         	White=20    	Black=11     Best:        	White=1     	Black=1} 1/2-1/2

[Event "CIS Master Groups 2024"]
[Site "Vasto"]
[Date "2024.04.14"]
[Round "10.2"]
[White "Yao, Stefano"]
[Black "Loiacono, Leonardo"]
[Result "1/2-1/2"]
[ECO "A46"]
[WhiteElo "2289"]
[BlackElo "2309"]
[Annotator "TA"]
[PlyCount "93"]
[EventDate "2024.04.07"]
[EventType "team-tourn"]
[EventCountry "ITA"]
[SourceTitle "playchess.com"]
[Source "ChessBase"]
[SourceQuality "1"]
[TimeControl "40/5400+30:900+30"]

{[%evp 10,93,0,-7,22,4,16,11,20,9,28,32,24,29,34,32,30,33,47,48,79,52,73,66,71,79,75,63,63,25,15,0,0,-135,-131,-216,-35,-32,0,0,30,0,0,-13,-11,-30,-13,-19,0,0,0,0,0,0,0,0,51,43,43,0,31,42,48,0,0,0,0,0,0,0,0,0,0,0,0,0,0,0,0,0,0,0,0,0,0,0]} 1. d4 {[%emt 1:18:54]} e6 {[%emt 1:18:54]} 2. Nf3 {[%emt 0:00:29]} Nf6 {[%emt 0:00:28]} 3. Bg5 {[%emt 0:00:29]} h6 {[%emt 0:00:44]} 4. Bh4 {[%emt 0:00:28]} b6 {[%emt 0:00:43]} 5. e3 {[%emt 0:00:37]} Bb7 {[%emt 0:00:29]} 6. Bd3 {[%emt 0:00:29]} d6 {[%emt 0:00:44]} (6... g5 $5 7. Bg3 $8 Bg7 $11) 7. c4 {[%emt 0:00:35]} Nbd7 {[%emt 0:00:37]} (7... g5 $5 8. Bg3 $8 Nh5 $11) 8. Nc3 {[%emt 0:00:29]} Be7 {[%emt 0:00:29]} 9. h3 {[%emt 0:00:42]} Nh5 {[%emt 0:01:38]} 10. Bxe7 {[%emt 0:00:30]} Qxe7 {[%emt 0:00:29]} 11. O-O {[%emt 0:00:50]} O-O {[%emt 0:01:04]} 12. Nd2 {[%emt 0:01:46]} Nhf6 {[%emt 0:00:35]} 13. e4 {[%emt 0:00:46]} c5 {[%emt 0:01:18]} 14. d5 {[%emt 0:00:28]} e5 {[%emt 0:00:39]} 15. Nf3 {[%emt 0:00:56]} Nh5 {[%emt 0:00:40]} 16. g3 {[%emt 0:00:32]} g6 {[%emt 0:00:35]} 17. Qd2 {[%emt 0:00:53]} Kg7 {[%emt 0:01:08]} 18. Rae1 {[%emt 0:00:39] White is more active.} Ndf6 {[%emt 0:01:40]} 19. Nh4 {[%emt 0:00:40]} Bc8 {[%emt 0:00:56]} 20. Kh2 {[%emt 0:00:43]} Qd7 $1 {[%emt 0:00:47]} 21. g4 {[%emt 0:01:22]} (21. Rh1 $1 $11) 21... Nf4 $17 {[%emt 0:00:45][%cal Of6g4]} 22. Rg1 {[%emt 0:01:45] [#]} (22. f3 $17) 22... Qe7 $2 {[%emt 0:01:26]} ({Black should try} 22... h5 $1 $19 {[%cal Rh5g4]} 23. Nf5+ gxf5 24. gxf5+ Kh7) 23. Ng2 $15 {[%emt 0:00:37]} Nxg2 {[%emt 0:01:05]} (23... g5 {seems wilder.} 24. Ne2 Rh8 25. Ne3 h5) 24. Rxg2 {[%emt 0:00:28]} Nh7 {[%emt 0:00:27]} 25. Rg3 {[%emt 0:01:53]} Bd7 {[%emt 0:00:36]} 26. Ne2 {[%emt 0:00:57]} a6 {[%emt 0:00:44]} 27. Nc3 {[%emt 0:00:53]} Rab8 {[%emt 0:00:32]} 28. a4 {[%emt 0:00:31]} Qg5 {[%emt 0:00:37]} 29. Qxg5 {[%emt 0:00:38]} Nxg5 {[%emt 0:00:50]} 30. h4 {[%emt 0:00:36]} Nh7 {[%emt 0:00:28][%cal Bg5h7,Bh7f6,Bf6e8,Be8c7][%mdl 32]} 31. Kg2 {[%emt 0:00:51]} Nf6 {[%emt 0:00:49]} 32. Be2 {[%emt 0:00:31]} g5 {[%emt 0:00:52]} (32... h5 $11 33. gxh5 Rh8) 33. Rh1 {[%emt 0:00:47]} Rh8 {[%emt 0:00:40]} 34. f3 {[%emt 0:00:31]} Ne8 {[%emt 0:00:41]} 35. Rgh3 {[%emt 0:00:41] [#] Black must now prevent hxg5.} Nc7 {[%emt 0:00:29]} 36. hxg5 {[%emt 0:00:32]} (36. Kg3 $14) 36... hxg5 $11 {[%emt 0:00:27] The position is equal.} 37. Rxh8 {[%emt 0:00:33]} Rxh8 {[%emt 0:00:29]} 38. Rxh8 {[%emt 0:00:28]} Kxh8 $14 {[%emt 0:00:27][%mdl 4096] Endgame. KBN-KBN} 39. Kf2 {[%emt 0:00:35]} Kg7 {[%emt 0:00:32]} 40. Ke3 {[%emt 0:00:28]} Kf6 {[%emt 0:00:29]} 41. Kd2 {[%emt 0:15:29]} Ke7 {[%emt 0:15:27]} 42. Kc2 {[%emt 0:00:31]} Kd8 {[%emt 0:00:34]} 43. Kb3 {[%emt 0:00:30]} Kc8 {[%emt 0:00:42]} 44. Ka3 {[%emt 0:00:28]} Kb7 {[%emt 0:00:29]} 45. b3 {[%emt 0:00:46]} f6 {[%emt 0:01:02]} 46. Kb2 {[%emt 0:00:29]} Be8 {[%emt 0:00:42]} 47. Bf1 {[%emt 0:00:30] Weighted Error Value: White=0.20 (precise) /Black=0.19 (very precise) .  Missed win:     	---       	Black=1      Mistake:       	White=3     	Black=1      Inaccurate:     	White=4     	Black=4      OK:         	White=10    	Black=14     Best:        	White=1     	Black=1      Strong:       	---       	Black=1} 1/2-1/2